fUST/lending_fUST_20250830
["ID","MTS","AMOUNT","RATE_DAILY","PERIOD"]
[382033558,1756483203627,152.56864224,0.00030804,10]
[382033571,1756483265686,152.56864224,0.00030808,10]
[382033581,1756483323480,152.56864224,0.00030808,10]
[382033594,1756483384062,152.56864224,0.00030808,10]
[382033603,1756483411349,200.0,0.00033486,120]
[382033605,1756483418098,21421.70973166,0.00025,3]
[382033606,1756483418129,24767.3209349,0.00025,3]
[382033607,1756483418155,19398.00930106,0.00025,3]
[382033608,1756483418181,25000.0,0.00025,3]
[382033631,1756483535130,-300.0,0.00024999,2]
[382033632,1756483535156,-300.0,0.00024999,2]
[382033633,1756483535177,-300.0,0.00024999,2]
[382033634,1756483535198,-300.0,0.00024999,2]
[382033635,1756483535222,-300.0,0.00024999,2]
[382033636,1756483535244,-729.69813213,0.00024999,2]
[382033643,1756483631094,-397.32456201,0.000249,2]
[382033644,1756483631116,-470.30186787,0.00024999,2]
[382033645,1756483631137,-260.75,0.00024999,2]
[382033646,1756483631159,-300.0,0.00024999,2]
[382033647,1756483631182,-1200.0,0.00024999,2]
[382033648,1756483631204,-12152.87208937,0.00025,3]
[382033649,1756483636092,-451.78667951,0.00025,3]
[382033650,1756483651127,-385.48838872,0.000249,2]
[382033726,1756483833393,-158.16193431,0.00024899,2]
[382033727,1756483833404,-2027.90307131,0.00024972,30]
[382033728,1756483833414,-186.98784741,0.00024973,2]
[382033787,1756483838884,-313.01215259,0.00024973,2]
[382033789,1756483838894,-1200.0,0.00024999,2]
[382033791,1756483838904,-3406.46970285,0.00025,3]
[382033793,1756483838916,-7097.94426753,0.00025,3]
[382033801,1756483838985,-38902.27163571,0.00025,3]
[382033806,1756483839021,-2277.77299334,0.00025,3]
[382033966,1756483840588,-6364.45061956,0.00025,3]
[382033980,1756483840723,-26576.41393071,0.00025,3]
[382033982,1756483840734,-300.0,0.00025499,20]
[382033984,1756483840744,-300.0,0.00025499,20]
[382033986,1756483840756,-300.0,0.00025499,20]
[382033988,1756483840766,-300.0,0.00025499,20]
[382033990,1756483840777,-300.0,0.00025499,20]
[382033992,1756483840786,-300.0,0.00025499,20]
[382033994,1756483840796,-300.0,0.00025499,20]
[382033996,1756483840806,-300.0,0.00025499,20]
[382033998,1756483840815,-300.0,0.00025499,20]
[382034000,1756483840825,-300.0,0.00025499,20]
[382034002,1756483840835,-300.0,0.00025499,20]
[382034004,1756483840846,-300.0,0.00025499,20]
[382034006,1756483840855,-300.0,0.00025499,20]
[382034008,1756483840866,-300.0,0.00025499,20]
[382034010,1756483840876,-300.0,0.00025499,20]
[382034012,1756483840886,-600.0,0.00025499,20]
[382034014,1756483840896,-152.56864224,0.00025662,5]
[382034016,1756483840905,-152.56864224,0.00026456,5]
[382034018,1756483840915,-177.0,0.00027082,2]
[382034020,1756483840925,-1680.0,0.00027205,2]
[382034022,1756483840934,-152.56864224,0.00027274,5]
[382034024,1756483840944,-720.0,0.00028049,20]
[382034026,1756483840954,-152.56864224,0.00028117,5]
[382034028,1756483840965,-152.56864224,0.00028987,5]
[382034030,1756483840975,-508.0,0.00029605,2]
[382034032,1756483840985,-152.56864224,0.00029877,5]
[382034034,1756483840995,-152.56864224,0.00030801,10]
[382034036,1756483841006,-864.0,0.00030854,20]
[382034038,1756483841016,-397.32456198,0.00031043,2]
[382034040,1756483841027,-200.0,0.00032203,120]
[382034042,1756483841037,-1000.0,0.00033939,20]
[382034044,1756483841047,-397.32456198,0.00037186,2]
[382034046,1756483841057,-1000.0,0.00037333,20]
[382034048,1756483841067,-244.0,0.00037333,20]
[382034050,1756483841077,-1086.8709672,0.00041056,3]
[382034052,1756483841086,-1000.0,0.00041066,30]
[382034054,1756483841096,-492.0,0.00041066,30]
[382034056,1756483841106,-168.0,0.00041165,2]
[382034058,1756483841116,-168.0,0.00041188,2]
[382034060,1756483841126,-409.0,0.00041256,2]
[382034062,1756483841135,-168.0,0.00041457,7]
[382034064,1756483841145,-9438.8810728,0.00041505,120]
[382034066,1756483841154,-168.0,0.00041593,7]
[382034069,1756483841164,-200.0,0.00041723,120]
[382034070,1756483841173,-168.0,0.00041887,2]
[382034073,1756483841183,-168.0,0.00042493,2]
[382034075,1756483841192,-168.0,0.00042811,2]
[382034076,1756483841202,-397.32456198,0.00043329,28]
[382034078,1756483841211,-153.0,0.00043951,30]
[382034080,1756483841224,-153.0,0.00043951,30]
[382034082,1756483841235,-153.0,0.00043951,30]
[382034084,1756483841252,-153.0,0.00043963,30]
[382034086,1756483841263,-152.70936213,0.00043997,30]
[382034088,1756483841272,-151.0,0.00043997,30]
[382034090,1756483841281,-158.44216742,0.00043997,30]
[382034092,1756483841291,-409.0,0.00044256,2]
[382034094,1756483841301,-151.0,0.00044271,30]
[382034096,1756483841311,-168.0,0.00044526,2]
[382034098,1756483841321,-198.0,0.00044545,30]
[382034100,1756483841331,-168.0,0.00044731,2]
[382034102,1756483841340,-177.823,0.00044964,72]
[382034104,1756483841350,-597.23202091,0.00045,120]
[382034106,1756483841361,-1000.0,0.00045173,30]
[382034108,1756483841373,-791.0,0.00045173,30]
[382034110,1756483841384,-168.0,0.00045289,7]
[382034112,1756483841394,-168.0,0.00045313,7]
[382034114,1756483841404,-1086.8709672,0.0004598,4]
[382034116,1756483841414,-41003.08424875,0.0004599,2]
[382034118,1756483841424,-597.55429296,0.00046244,2]
[382034120,1756483841433,-249.29789604,0.00046259,2]
[382034122,1756483841442,-597.55429292,0.00046301,2]
[382034124,1756483841453,-2173.7419344,0.00046324,4]
[382034126,1756483841463,-7608.0967704,0.00046334,4]
[382034128,1756483841473,-151.0,0.00046344,120]
[382034130,1756483841483,-151.0,0.00046344,120]
[382034132,1756483841493,-151.0,0.00046344,120]
[382034134,1756483841511,-237.602183,0.00046344,120]
[382034136,1756483841521,-151.0,0.00046344,120]
[382034138,1756483841531,-151.0,0.00046344,120]
[382034140,1756483841541,-151.0,0.00046344,120]
[382034142,1756483841553,-151.0,0.00046344,120]
[382034144,1756483841563,-50429.2936496,0.00046344,2]
[382034166,1756483841772,-109643.40658217,0.00046344,2]
[382034344,1756483843622,-221.66872378,0.000249,2]
[382034347,1756483843632,-1841.13127622,0.00046344,2]
[382034351,1756483843644,-1962.24768531,0.00046344,2]
[382034401,1756483844043,-130100.92610442,0.00046344,2]
[382034691,1756483846826,-76022.99470228,0.00046344,2]
[382034693,1756483846836,-597.55429292,0.00046359,2]
[382034695,1756483846845,-1086.8709672,0.00046413,4]
[382034697,1756483846856,-597.55429292,0.00046416,2]
[382034699,1756483846865,-159.590205,0.00046421,2]
[382034701,1756483846875,-1038.02459652,0.00046423,2]
[382034703,1756483846885,-2173.7419344,0.00046434,4]
[382034705,1756483846894,-492.30822759,0.00046444,23]
[382037724,1756484044561,1363.05216039,0.000253,2]
[382037729,1756484074177,23636.94783961,0.00027,2]
[382037730,1756484074203,16025.05216039,0.00027,2]
[382037753,1756484103948,177.224325,0.00013699,2]
[382037758,1756484163594,152.56864224,0.0002645,5]
[382037765,1756484223624,152.56864224,0.0002645,5]
[382037769,1756484283706,152.56864224,0.0002645,5]
[382037802,1756484343636,152.56864224,0.0002645,5]
[382037807,1756484591664,245.02177276,0.00027,2]
[382038539,1756484723884,1693.00559607,0.00027,2]
[382038541,1756484732124,-264.04672808,0.00029876,2]
[382038542,1756484732149,-179.44268061,0.00038225,5]
[382038590,1756484764351,730.28690092,0.000253,2]
[382039694,1756484825117,-150.29,0.00028074,15]
[382039696,1756484825140,-150.29,0.00028174,15]
[382039698,1756484825161,-1220.944733,0.000305,3]
[382039700,1756484825183,-320.55731939,0.00038225,5]
[382039702,1756484825204,-156.06169757,0.00040137,2]
[382039704,1756484825225,-500.0,0.00040237,5]
[382039706,1756484825245,-500.0,0.00042354,30]
[382039707,1756484825270,-272.247,0.00043399,2]
[382039709,1756484825291,-198.66228099,0.00043735,28]
[382039711,1756484825311,-160.0,0.00043818,3]
[382039713,1756484825335,-390.91,0.00043825,30]
[382039715,1756484825358,-320.0,0.00043834,5]
[382039717,1756484825379,-480.0,0.00043835,120]
[382039719,1756484825401,-232.26552281,0.00043835,120]
[382040127,1756484840083,-768.0,0.00043834,5]
[382040128,1756484840107,-247.73447719,0.00043835,120]
[382040129,1756484840131,-480.0,0.00043835,120]
[382040130,1756484840153,-480.0,0.00043835,120]
[382040131,1756484840177,-483.72762424,0.00043835,120]
[382040132,1756484840198,-362.78236597,0.00043835,120]
[382040134,1756484851084,-117.21763403,0.00043835,120]
[382040135,1756484851109,-480.0,0.00043835,120]
[382040136,1756484851129,-481.91966711,0.00043835,120]
[382040137,1756484851150,-480.0,0.00043835,120]
[382040138,1756484851170,-93.81621251,0.00043835,120]
[382040828,1756484923921,5519.1346759,0.00026,30]
[382040829,1756484923947,11564.42868685,0.00026,30]
[382040832,1756484929244,325.72285892,0.0002465,2]
[382040895,1756485032720,-173.82949591,0.0003189,2]
[382040896,1756485032730,-500.0,0.00031973,5]
[382040897,1756485032740,-55133.10803766,0.0003199,2]
[382040914,1756485040598,-44866.89196234,0.0003199,2]
[382040915,1756485040608,-271.46,0.0003199,3]
[382040916,1756485040620,-814.43,0.0003199,3]
[382040917,1756485040629,-854.4626741,0.00032,2]
[382040918,1756485040638,-7691.96186311,0.00032,60]
[382040919,1756485040650,-18380.41055372,0.00032,60]
[382040920,1756485040790,-918.91408941,0.00032,60]
[382041183,1756485043805,-221007.33476669,0.00032,60]
[382042502,1756485063509,175.51884,0.00013699,2]
[382042574,1756485646934,247.42,0.00024827,2]
[382042575,1756485710659,164.94,0.00025357,7]
[382042576,1756486025132,-155.6,0.00028076,15]
[382042577,1756486025155,-87.37731107,0.00028076,15]
[382042578,1756486041191,-79.31268893,0.00028076,15]
[382042579,1756486041210,-155.61401259,0.00028176,15]
[382042580,1756486041231,-166.69,0.00028176,15]
[382042581,1756486041253,-166.69,0.00028276,15]
[382042582,1756486041275,-166.69,0.00028376,15]
[382042583,1756486041296,-166.69,0.00028476,15]
[382042584,1756486041316,-166.69,0.00028576,15]
[382042585,1756486041337,-166.69,0.00028676,15]
[382042586,1756486041359,-166.71333059,0.00028776,15]
[382042587,1756486041379,-300.0,0.00029172,2]
[382042588,1756486041400,-1200.0,0.00029172,2]
[382042589,1756486041420,-2626.61015856,0.00029173,2]
[382042590,1756486048863,-2200.0,0.00030815,60]
[382042591,1756486048894,-282760.12135549,0.00032,60]
[382042592,1756486048922,-300.0,0.00032628,20]
[382042593,1756486048947,-181.12497587,0.000332,117]
[382042594,1756486048975,-427.23133705,0.0003752,23]
[382042595,1756486049001,-500.0,0.00038356,120]
[382042596,1756486049029,-250.0,0.0004,14]
[382042597,1756486049053,-757.40614346,0.00042179,28]
[382042598,1756486049076,-293.7058966,0.00042354,30]
[382042599,1756486049100,-153.0,0.00043611,30]
[382042600,1756486049123,-153.0,0.00043611,30]
[382042601,1756486049147,-153.0,0.00043612,30]
[382042602,1756486049171,-153.0,0.00043612,30]
[382042603,1756486049193,-153.0,0.00043623,30]
[382042604,1756486049217,-153.0,0.00043623,30]
[382042605,1756486049243,-153.0,0.00043624,30]
[382042606,1756486049267,-153.0,0.00043624,30]
[382042607,1756486049291,-153.0,0.00043634,30]
[382042608,1756486049315,-153.0,0.00043634,30]
[382042609,1756486049339,-153.0,0.00043635,30]
[382042610,1756486049363,-153.0,0.00043635,30]
[382042611,1756486049385,-265.301986,0.00043825,120]
[382042612,1756486049409,-151.0,0.00043825,15]
[382042613,1756486049433,-151.0,0.00043825,120]
[382042614,1756486049458,-151.0,0.00043825,120]
[382042615,1756486049482,-151.0,0.00043825,120]
[382042616,1756486049507,-151.0,0.00043825,30]
[382042617,1756486049530,-151.0,0.00043825,30]
[382042618,1756486049555,-151.0,0.00043825,30]
[382042619,1756486049579,-151.0,0.00043825,120]
[382042620,1756486049602,-280.599709,0.00043825,120]
[382042621,1756486049624,-152.601157,0.00043825,120]
[382042622,1756486049649,-151.0,0.00043825,120]
[382042623,1756486049672,-151.0,0.00043825,120]
[382042624,1756486049696,-151.0,0.00043825,120]
[382042625,1756486049720,-151.0,0.00043825,120]
[382042626,1756486049744,-151.0,0.00043825,120]
[382042627,1756486049767,-151.0,0.00043825,120]
[382042628,1756486049791,-151.0,0.00043825,120]
[382042629,1756486049825,-151.0,0.00043825,120]
[382042630,1756486049850,-151.0,0.00043825,120]
[382042631,1756486049874,-151.0,0.00043825,120]
[382042632,1756486049903,-151.0,0.00043825,120]
[382042633,1756486049929,-151.0,0.00043825,120]
[382042634,1756486049955,-289.460494,0.00043825,120]
[382042635,1756486049981,-482.42538548,0.00043835,120]
[382042636,1756486050006,-480.0,0.00043835,120]
[382042637,1756486050031,-480.0,0.00043835,120]
[382042638,1756486050057,-537.31134205,0.00043835,120]
[382042639,1756486050081,-480.0,0.00043835,120]
[382042640,1756486050106,-480.0,0.00043835,120]
[382042641,1756486050131,-480.0,0.00043835,120]
[382042642,1756486050159,-481.78214374,0.00043835,120]
[382042643,1756486050183,-480.0,0.00043835,120]
[382042644,1756486050207,-480.0,0.00043835,120]
[382042645,1756486050232,-480.0,0.00043835,120]
[382042646,1756486050257,-480.0,0.00043835,120]
[382042647,1756486050281,-480.0,0.00043835,120]
[382042648,1756486050306,-480.0,0.00043835,120]
[382042649,1756486050433,-480.0,0.00043835,120]
[382042650,1756486050459,-480.0,0.00043835,120]
[382042651,1756486050485,-480.0,0.00043835,120]
[382042652,1756486050509,-480.0,0.00043835,120]
[382042653,1756486050533,-480.0,0.00043835,120]
[382042654,1756486050558,-480.0,0.00043835,120]
[382042655,1756486050582,-480.0,0.00043835,120]
[382042656,1756486050605,-2837.73,0.00043835,120]
[382042657,1756486050629,-349.95487172,0.00043835,120]
[382042658,1756486050653,-480.0,0.00043835,120]
[382042659,1756486050677,-480.0,0.00043835,120]
[382042660,1756486050701,-480.0,0.00043835,120]
[382042661,1756486050725,-480.0,0.00043835,120]
[382042662,1756486050748,-480.0,0.00043835,120]
[382042663,1756486050771,-228.64732256,0.00043835,120]
[382042664,1756486050795,-481.32764638,0.00043835,120]
[382042665,1756486050819,-480.0,0.00043835,120]
[382042666,1756486050844,-482.24198115,0.00043835,120]
[382042667,1756486050868,-480.0,0.00043835,120]
[382042668,1756486050895,-480.0,0.00043835,120]
[382042669,1756486050921,-480.0,0.00043835,120]
[382042670,1756486050958,-480.0,0.00043835,120]
[382042671,1756486050982,-434.34059067,0.00043835,120]
[382042672,1756486051006,-480.0,0.00043835,120]
[382042673,1756486051030,-480.0,0.00043835,120]
[382042674,1756486051053,-480.0,0.00043835,120]
[382042675,1756486051076,-480.0,0.00043835,120]
[382042676,1756486051099,-480.0,0.00043835,120]
[382042677,1756486051123,-151.000001,0.00043835,120]
[382042678,1756486051147,-480.0,0.00043835,120]
[382042679,1756486051171,-480.0,0.00043835,120]
[382042680,1756486051195,-151.0,0.00043835,120]
[382042681,1756486051220,-480.0,0.00043835,120]
[382042682,1756486051245,-480.0,0.00043835,120]
[382042683,1756486051270,-480.0,0.00043835,120]
[382042684,1756486051294,-480.0,0.00043835,120]
[382042685,1756486051320,-480.0,0.00043835,120]
[382042686,1756486051345,-480.0,0.00043835,120]
[382042687,1756486051368,-480.0,0.00043835,120]
[382042688,1756486051393,-481.8409802,0.00043835,120]
[382042689,1756486051418,-480.0,0.00043835,120]
[382042690,1756486051446,-480.0,0.00043835,120]
[382042691,1756486051471,-151.0,0.00043835,30]
[382042692,1756486051495,-151.0,0.00043835,30]
[382042693,1756486051519,-480.0,0.00043835,120]
[382042694,1756486051544,-492.90178902,0.00043835,120]
[382042695,1756486051568,-480.0,0.00043835,120]
[382042696,1756486051591,-480.0,0.00043835,120]
[382042697,1756486051615,-480.0,0.00043835,120]
[382042698,1756486051639,-480.0,0.00043835,120]
[382042699,1756486051663,-480.0,0.00043835,120]
[382042700,1756486051688,-480.0,0.00043835,120]
[382042701,1756486051712,-480.0,0.00043835,120]
[382042702,1756486051736,-480.0,0.00043835,120]
[382042703,1756486051761,-480.95212872,0.00043835,120]
[382042704,1756486051784,-480.0,0.00043835,120]
[382042705,1756486051808,-480.0,0.00043835,120]
[382042706,1756486051833,-480.0,0.00043835,120]
[382042707,1756486051857,-480.0,0.00043835,120]
[382042708,1756486051883,-480.0,0.00043835,120]
[382042709,1756486051909,-500.0,0.00043835,120]
[382042710,1756486051934,-500.0,0.00043835,120]
[382042711,1756486051959,-480.0,0.00043835,120]
[382042712,1756486051984,-480.0,0.00043835,120]
[382042713,1756486052014,-481.02882827,0.00043835,120]
[382042714,1756486052041,-480.0,0.00043835,120]
[382042715,1756486052066,-480.0,0.00043835,120]
[382042716,1756486052090,-480.0,0.00043835,120]
[382042717,1756486052113,-480.0,0.00043835,120]
[382042718,1756486052137,-480.0,0.00043835,120]
[382042719,1756486052161,-151.0,0.00043835,120]
[382042720,1756486052185,-151.0,0.00043835,120]
[382042721,1756486052209,-287.860876,0.00043835,120]
[382042722,1756486052233,-480.0,0.00043835,120]
[382042723,1756486052357,-480.50169768,0.00043835,120]
[382042724,1756486052382,-480.0,0.00043835,120]
[382042725,1756486052406,-480.0,0.00043835,90]
[382042726,1756486052431,-480.0,0.00043835,120]
[382042727,1756486052455,-480.0,0.00043835,120]
[382042728,1756486052480,-480.0,0.00043835,120]
[382042729,1756486052504,-480.0,0.00043835,120]
[382042730,1756486052529,-482.58721784,0.00043835,120]
[382042731,1756486052554,-480.0,0.00043835,120]
[382042732,1756486052579,-480.0,0.00043835,120]
[382042733,1756486052606,-480.0,0.00043835,120]
[382042734,1756486052630,-480.0,0.00043835,120]
[382042735,1756486052654,-480.0,0.00043835,120]
[382042736,1756486052678,-480.0,0.00043835,120]
[382042737,1756486052701,-480.0,0.00043835,120]
[382042738,1756486052726,-480.0,0.00043835,120]
[382042739,1756486052751,-480.0,0.00043835,120]
[382042740,1756486052775,-167.62323,0.00043835,120]
[382042741,1756486052802,-480.0,0.00043835,120]
[382042742,1756486052826,-480.0,0.00043835,120]
[382042743,1756486052852,-481.65644411,0.00043835,120]
[382042744,1756486052878,-482.32240451,0.00043835,120]
[382042745,1756486052907,-480.0,0.00043835,120]
[382042746,1756486052936,-481.91911647,0.00043835,120]
[382042747,1756486052964,-483.4411271,0.00043835,120]
[382042748,1756486052990,-481.85359531,0.00043835,120]
[382042749,1756486053019,-480.0,0.00043835,120]
[382042750,1756486053049,-480.0,0.00043835,120]
[382042751,1756486053078,-480.0,0.00043835,120]
[382042752,1756486053107,-480.0,0.00043835,120]
[382042753,1756486053138,-480.0,0.00043835,120]
[382042754,1756486053170,-480.0,0.00043835,120]
[382042755,1756486053202,-613.32518252,0.00043835,120]
[382042756,1756486053234,-480.0,0.00043835,120]
[382042757,1756486053265,-480.0,0.00043835,120]
[382042758,1756486053302,-480.0,0.00043835,120]
[382042759,1756486053335,-480.0,0.00043835,120]
[382042760,1756486053367,-480.0,0.00043835,120]
[382042761,1756486053398,-480.0,0.00043835,120]
[382042762,1756486053429,-480.0,0.00043835,120]
[382042763,1756486053459,-481.57112889,0.00043835,120]
[382042764,1756486053489,-481.99380648,0.00043835,120]
[382042765,1756486053522,-480.0,0.00043835,120]
[382042766,1756486053551,-480.0,0.00043835,120]
[382042767,1756486053584,-480.0,0.00043835,120]
[382042768,1756486053615,-480.0,0.00043835,120]
[382042769,1756486053646,-480.0,0.00043835,120]
[382042770,1756486053676,-480.0,0.00043835,120]
[382042771,1756486053703,-481.73731652,0.00043835,120]
[382042772,1756486053736,-480.0,0.00043835,120]
[382042773,1756486053763,-480.0,0.00043835,120]
[382042774,1756486053793,-480.0,0.00043835,120]
[382042775,1756486053822,-480.0,0.00043835,120]
[382042776,1756486053852,-480.0,0.00043835,120]
[382042777,1756486053884,-480.0,0.00043835,120]
[382042778,1756486053912,-482.52706861,0.00043835,120]
[382042779,1756486053941,-481.52177546,0.00043835,120]
[382042780,1756486053970,-480.0,0.00043835,120]
[382042781,1756486053996,-480.0,0.00043835,120]
[382042782,1756486054023,-480.0,0.00043835,120]
[382042783,1756486054054,-480.0,0.00043835,120]
[382042784,1756486054080,-480.0,0.00043835,120]
[382042785,1756486054110,-480.0,0.00043835,120]
[382042786,1756486054140,-480.0,0.00043835,120]
[382042787,1756486054170,-480.0,0.00043835,120]
[382042788,1756486054199,-480.0,0.00043835,120]
[382042789,1756486054226,-480.0,0.00043835,120]
[382042790,1756486054253,-480.0,0.00043835,120]
[382042791,1756486054279,-435.31924571,0.00043835,120]
[382042792,1756486054304,-480.0,0.00043835,120]
[382042793,1756486054330,-480.0,0.00043835,120]
[382042794,1756486054458,-480.0,0.00043835,120]
[382042795,1756486054484,-480.0,0.00043835,120]
[382042796,1756486054510,-480.0,0.00043835,120]
[382042797,1756486054535,-294.584985,0.00043835,120]
[382042798,1756486054560,-480.0,0.00043835,120]
[382042799,1756486054584,-480.0,0.00043835,120]
[382042800,1756486054609,-480.0,0.00043835,120]
[382042801,1756486054632,-480.0,0.00043835,120]
[382042802,1756486054657,-480.0,0.00043835,120]
[382042803,1756486054681,-480.0,0.00043835,120]
[382042804,1756486054706,-151.0,0.00043835,120]
[382042805,1756486054730,-480.0,0.00043835,120]
[382042806,1756486054754,-480.0,0.00043835,120]
[382042807,1756486054778,-480.0,0.00043835,120]
[382042808,1756486054802,-480.0,0.00043835,120]
[382042809,1756486054825,-480.0,0.00043835,120]
[382042810,1756486054849,-480.0,0.00043835,120]
[382042811,1756486054872,-480.0,0.00043835,120]
[382042812,1756486054900,-575.47,0.00043835,120]
[382042813,1756486054924,-480.0,0.00043835,120]
[382042814,1756486054947,-480.0,0.00043835,120]
[382042815,1756486054973,-480.0,0.00043835,120]
[382042816,1756486054997,-480.0,0.00043835,120]
[382042817,1756486055021,-151.0,0.00043835,90]
[382042818,1756486055045,-480.0,0.00043835,120]
[382042819,1756486055069,-480.0,0.00043835,120]
[382042820,1756486055093,-480.0,0.00043835,120]
[382042821,1756486055116,-480.0,0.00043835,120]
[382042822,1756486055140,-480.0,0.00043835,120]
[382042823,1756486055164,-480.0,0.00043835,120]
[382042824,1756486055188,-480.0,0.00043835,120]
[382042825,1756486055213,-480.0,0.00043835,120]
[382042826,1756486055237,-480.0,0.00043835,120]
[382042827,1756486055260,-480.0,0.00043835,120]
[382042828,1756486055283,-480.0,0.00043835,120]
[382042829,1756486055307,-481.54506706,0.00043835,120]
[382042830,1756486055332,-480.0,0.00043835,120]
[382042831,1756486055356,-480.0,0.00043835,120]
[382042832,1756486055381,-480.0,0.00043835,120]
[382042833,1756486055406,-478.45965451,0.00043835,120]
[382042834,1756486055430,-480.0,0.00043835,120]
[382042835,1756486055454,-463.90499236,0.00043835,120]
[382042836,1756486055478,-480.0,0.00043835,120]
[382042837,1756486055502,-480.0,0.00043835,120]
[382042838,1756486055527,-480.0,0.00043835,120]
[382042839,1756486055551,-480.0,0.00043835,120]
[382042840,1756486055575,-480.0,0.00043835,120]
[382042841,1756486055599,-480.0,0.00043835,120]
[382042842,1756486055623,-480.0,0.00043835,120]
[382042843,1756486055647,-480.0,0.00043835,120]
[382042844,1756486055672,-480.0,0.00043835,120]
[382042845,1756486055695,-435.7643244,0.00043835,120]
[382042846,1756486055719,-480.83354466,0.00043835,120]
[382042847,1756486055742,-480.0,0.00043835,120]
[382042848,1756486055765,-481.22280952,0.00043835,120]
[382042849,1756486055789,-480.0,0.00043835,120]
[382042850,1756486055813,-480.0,0.00043835,120]
[382042851,1756486055836,-480.0,0.00043835,120]
[382042852,1756486055859,-480.0,0.00043835,120]
[382042853,1756486055885,-480.70304392,0.00043835,120]
[382042854,1756486055909,-481.20566723,0.00043835,120]
[382042855,1756486055933,-480.0,0.00043835,120]
[382042856,1756486055957,-480.98849564,0.00043835,120]
[382042857,1756486055982,-480.0,0.00043835,120]
[382042858,1756486056007,-481.38090822,0.00043835,120]
[382042859,1756486056031,-514.00939681,0.00043835,120]
[382042860,1756486056057,-480.0,0.00043835,120]
[382042861,1756486056082,-480.0,0.00043835,120]
[382042862,1756486056200,-480.0,0.00043835,120]
[382042863,1756486056225,-480.0,0.00043835,120]
[382042864,1756486056250,-480.0,0.00043835,120]
[382042865,1756486056274,-480.0,0.00043835,120]
[382042866,1756486056298,-481.04826941,0.00043835,120]
[382042867,1756486056323,-480.0,0.00043835,120]
[382042868,1756486056347,-480.0,0.00043835,120]
[382042869,1756486056373,-480.0,0.00043835,120]
[382042870,1756486056399,-481.2855165,0.00043835,120]
[382042871,1756486056423,-480.98300632,0.00043835,120]
[382042872,1756486056446,-480.0,0.00043835,120]
[382042873,1756486056471,-480.0,0.00043835,120]
[382042874,1756486056495,-481.2564332,0.00043835,120]
[382042875,1756486056520,-480.0,0.00043835,120]
[382042876,1756486056543,-480.85008314,0.00043835,120]
[382042877,1756486056567,-480.0,0.00043835,120]
[382042878,1756486056592,-480.0,0.00043835,120]
[382042879,1756486056615,-480.0,0.00043835,120]
[382042880,1756486056640,-481.16917585,0.00043835,120]
[382042881,1756486056668,-480.0,0.00043835,120]
[382042882,1756486056692,-480.0,0.00043835,120]
[382042883,1756486056716,-480.0,0.00043835,120]
[382042884,1756486056740,-356.00317973,0.00043835,120]
[382042885,1756486056764,-480.0,0.00043835,120]
[382042886,1756486056788,-480.0,0.00043835,120]
[382042887,1756486056811,-480.0,0.00043835,120]
[382042888,1756486056834,-480.0,0.00043835,120]
[382042889,1756486056857,-480.0,0.00043835,120]
[382042890,1756486056883,-480.60391088,0.00043835,120]
[382042891,1756486056907,-151.0,0.00043835,120]